[Event "Late-Titled-Tuesday-Blitz-March-19-2024"]
[Site "Chess.com"]
[Date "2024.03.19"]
[Round "8"]
[White "Chempiblinka"]
[Black "Cambek64"]
[Result "1-0"]
[WhiteElo "2361"]
[BlackElo "2472"]
[TimeControl "180+1"]
[EndTime "15:28:56 PDT"]
[Termination "Chempiblinka won on time"]

1. Nf3 {[%clk 0:03:00.9]} 1... b5 {[%clk 0:02:58.6]} 2. g3 {[%clk 0:03:00.3]}
2... Bb7 {[%clk 0:02:59]} 3. Bg2 {[%clk 0:03:00.8]} 3... Nf6 {[%clk 0:02:59.5]}
4. O-O {[%clk 0:03:01.3]} 4... e6 {[%clk 0:02:59.9]} 5. d4 {[%clk 0:02:58]} 5...
c5 {[%clk 0:02:55]} 6. c3 {[%clk 0:02:57]} 6... a6 {[%clk 0:02:54.5]} 7. Bg5
{[%clk 0:02:54.1]} 7... Be7 {[%clk 0:02:52]} 8. Nbd2 {[%clk 0:02:53.2]} 8... O-O
{[%clk 0:02:49.5]} 9. Re1 {[%clk 0:02:49.3]} 9... cxd4 {[%clk 0:02:39.8]} 10.
cxd4 {[%clk 0:02:46.8]} 10... d5 {[%clk 0:02:38.5]} 11. Ne5 {[%clk 0:02:40.6]}
11... Nc6 {[%clk 0:02:38]} 12. Ndf3 {[%clk 0:02:33.8]} 12... Ne4 {[%clk
0:02:34.2]} 13. Bxe7 {[%clk 0:02:32.9]} 13... Qxe7 {[%clk 0:02:34.8]} 14. Rc1
{[%clk 0:02:29.6]} 14... Rfc8 {[%clk 0:02:29.9]} 15. e3 {[%clk 0:02:26.1]} 15...
Qb4 {[%clk 0:02:25.8]} 16. Nd3 {[%clk 0:02:13.1]} 16... Qa5 {[%clk 0:02:24.8]}
17. a3 {[%clk 0:02:02.3]} 17... b4 {[%clk 0:02:24.6]} 18. Ra1 {[%clk 0:01:46.4]}
18... Qb6 {[%clk 0:02:19.7]} 19. Qb3 {[%clk 0:01:40.7]} 19... a5 {[%clk
0:02:19.1]} 20. axb4 {[%clk 0:01:40.5]} 20... Nxb4 {[%clk 0:02:14.5]} 21. Rec1
{[%clk 0:01:26.6]} 21... Ba6 {[%clk 0:02:09.8]} 22. Nxb4 {[%clk 0:01:17.8]}
22... axb4 {[%clk 0:02:06.8]} 23. Rxc8+ {[%clk 0:01:03.5]} 23... Rxc8 {[%clk
0:02:05.8]} 24. Qa4 {[%clk 0:01:01.7]} 24... Be2 {[%clk 0:01:30.7]} 25. Qc2
{[%clk 0:00:51.3]} 25... Ba6 {[%clk 0:01:26.3]} 26. Qa4 {[%clk 0:00:47.5]} 26...
Bb7 {[%clk 0:01:16.3]} 27. Ne5 {[%clk 0:00:45.5]} 27... Nf6 {[%clk 0:01:11.7]}
28. Nd7 {[%clk 0:00:34.9]} 28... Nxd7 {[%clk 0:01:09.5]} 29. Qxd7 {[%clk
0:00:35.4]} 29... g6 {[%clk 0:00:54.9]} 30. h4 {[%clk 0:00:35.6]} 30... h5
{[%clk 0:00:51.8]} 31. Qe7 {[%clk 0:00:28.6]} 31... Kg7 {[%clk 0:00:49]} 32. Bf1
{[%clk 0:00:27.7]} 32... Rc2 {[%clk 0:00:43.1]} 33. Rb1 {[%clk 0:00:24.6]} 33...
Ba6 {[%clk 0:00:40.7]} 34. Bxa6 {[%clk 0:00:23]} 34... Qxa6 {[%clk 0:00:41]} 35.
Qxb4 {[%clk 0:00:22.9]} 35... Qe2 {[%clk 0:00:41.4]} 36. Qe1 {[%clk 0:00:23.5]}
36... Rxb2 {[%clk 0:00:36.4]} 37. Qxe2 {[%clk 0:00:23.2]} 37... Rxe2 {[%clk
0:00:36.7]} 38. Kg2 {[%clk 0:00:21.2]} 38... Rd2 {[%clk 0:00:35.3]} 39. Kf3
{[%clk 0:00:21.8]} 39... Kf6 {[%clk 0:00:34.8]} 40. Rb7 {[%clk 0:00:22.2]} 40...
Rc2 {[%clk 0:00:31.3]} 41. Ra7 {[%clk 0:00:21]} 41... Rc8 {[%clk 0:00:30.5]} 42.
Kg2 {[%clk 0:00:21]} 42... Rg8 {[%clk 0:00:30.4]} 43. Kf3 {[%clk 0:00:21.2]}
43... g5 {[%clk 0:00:28.7]} 44. hxg5+ {[%clk 0:00:22.1]} 44... Rxg5 {[%clk
0:00:28.7]} 45. Ra1 {[%clk 0:00:22.3]} 45... Rf5+ {[%clk 0:00:28.4]} 46. Kg2
{[%clk 0:00:22]} 46... Kg5 {[%clk 0:00:28.6]} 47. Rh1 {[%clk 0:00:22.4]} 47...
Rf6 {[%clk 0:00:27.2]} 48. Rh4 {[%clk 0:00:20.3]} 48... Rg6 {[%clk 0:00:26.8]}
49. Rf4 {[%clk 0:00:18.2]} 49... f5 {[%clk 0:00:27.4]} 50. Rh4 {[%clk
0:00:18.3]} 50... Rg7 {[%clk 0:00:26.8]} 51. Kf3 {[%clk 0:00:18.6]} 51... Rc7
{[%clk 0:00:24.1]} 52. Rh1 {[%clk 0:00:18.7]} 52... Rh7 {[%clk 0:00:21.9]} 53.
Rh4 {[%clk 0:00:17.6]} 53... Rh8 {[%clk 0:00:21.1]} 54. Rh1 {[%clk 0:00:17.3]}
54... Rh7 {[%clk 0:00:19.1]} 55. Rb1 {[%clk 0:00:17.2]} 55... h4 {[%clk
0:00:18.2]} 56. gxh4+ {[%clk 0:00:18.1]} 56... Rxh4 {[%clk 0:00:18.1]} 57. Rb6
{[%clk 0:00:18.3]} 57... Kf6 {[%clk 0:00:17.6]} 58. Rb8 {[%clk 0:00:18.3]} 58...
Kf7 {[%clk 0:00:15.5]} 59. Rb7+ {[%clk 0:00:18.1]} 59... Kf6 {[%clk 0:00:15.2]}
60. Rb6 {[%clk 0:00:18.2]} 60... f4 {[%clk 0:00:11.6]} 61. e4 {[%clk 0:00:11.7]}
61... dxe4+ {[%clk 0:00:09.5]} 62. Kxe4 {[%clk 0:00:12.6]} 62... f3+ {[%clk
0:00:05.2]} 63. Ke3 {[%clk 0:00:11.8]} 63... Rh3 {[%clk 0:00:04.1]} 64. d5
{[%clk 0:00:11.4]} 64... Ke5 {[%clk 0:00:02.6]} 65. dxe6 {[%clk 0:00:11.1]}
65... Kf6 {[%clk 0:00:02.2]} 66. Ra6 {[%clk 0:00:10.6]} 66... Ke7 {[%clk
0:00:01.7]} 67. Kf4 {[%clk 0:00:10.7]} 1-0

[Event "Late-Titled-Tuesday-Blitz-March-19-2024"]
[Site "Chess.com"]
[Date "2024.03.19"]
[Round "8"]
[White "GodzillaChessYoutube"]
[Black "KuzubovYuriy"]
[Result "0-1"]
[WhiteElo "2702"]
[BlackElo "2908"]
[TimeControl "180+1"]
[EndTime "15:29:03 PDT"]
[Termination "KuzubovYuriy won on time"]

1. d4 {[%clk 0:03:00.9]} 1... d5 {[%clk 0:02:59.6]} 2. Bf4 {[%clk 0:03:00.6]}
2... Nf6 {[%clk 0:02:56.6]} 3. e3 {[%clk 0:03:01]} 3... e6 {[%clk 0:02:54.8]} 4.
Nd2 {[%clk 0:03:00.4]} 4... c5 {[%clk 0:02:54.3]} 5. c3 {[%clk 0:03:00.5]} 5...
Nc6 {[%clk 0:02:54.9]} 6. Ngf3 {[%clk 0:02:56.7]} 6... Nh5 {[%clk 0:02:54.5]} 7.
Bg5 {[%clk 0:02:56.3]} 7... Qb6 {[%clk 0:02:55.2]} 8. Rb1 {[%clk 0:02:42.8]}
8... h6 {[%clk 0:02:54.2]} 9. Bh4 {[%clk 0:02:41.3]} 9... g5 {[%clk 0:02:54.3]}
10. Ng1 {[%clk 0:02:13.8]} 10... Ng7 {[%clk 0:02:42.2]} 11. Bg3 {[%clk
0:02:13.3]} 11... Nf5 {[%clk 0:02:41.1]} 12. Bd3 {[%clk 0:02:13.8]} 12... Nxg3
{[%clk 0:02:37]} 13. hxg3 {[%clk 0:02:14.7]} 13... Bg7 {[%clk 0:02:37]} 14. f4
{[%clk 0:01:59.8]} 14... Bd7 {[%clk 0:02:28.1]} 15. Ngf3 {[%clk 0:01:57.4]}
15... O-O-O {[%clk 0:02:27.7]} 16. Qb3 {[%clk 0:01:32.4]} 16... c4 {[%clk
0:02:22.7]} 17. Qxb6 {[%clk 0:01:31.8]} 17... axb6 {[%clk 0:02:23.6]} 18. Bc2
{[%clk 0:01:29]} 18... f6 {[%clk 0:02:06.5]} 19. Rd1 {[%clk 0:00:58.2]} 19... g4
{[%clk 0:02:06]} 20. Nh2 {[%clk 0:00:55]} 20... f5 {[%clk 0:02:04]} 21. a3
{[%clk 0:00:43.8]} 21... Kc7 {[%clk 0:02:03.8]} 22. Nhf1 {[%clk 0:00:39.6]}
22... Ra8 {[%clk 0:01:57]} 23. Kf2 {[%clk 0:00:38.9]} 23... h5 {[%clk
0:01:54.9]} 24. Nb1 {[%clk 0:00:38.5]} 24... Bf6 {[%clk 0:01:52.7]} 25. Nfd2
{[%clk 0:00:38.1]} 25... Ne7 {[%clk 0:01:49.8]} 26. Rh2 {[%clk 0:00:36.9]} 26...
Rh7 {[%clk 0:01:49.7]} 27. Rdh1 {[%clk 0:00:36.7]} 27... Rah8 {[%clk 0:01:49.9]}
28. Nf1 {[%clk 0:00:35.5]} 28... Nc8 {[%clk 0:01:47.2]} 29. Nfd2 {[%clk
0:00:31.1]} 29... Nd6 {[%clk 0:01:35.4]} 30. Ke2 {[%clk 0:00:24.1]} 30... Be8
{[%clk 0:01:31.3]} 31. Bd1 {[%clk 0:00:22.2]} 31... Bg6 {[%clk 0:01:23.2]} 32.
Bc2 {[%clk 0:00:22]} 32... Kd7 {[%clk 0:01:13.9]} 33. Nf1 {[%clk 0:00:19.4]}
33... Ke7 {[%clk 0:01:11.8]} 34. Nbd2 {[%clk 0:00:19.9]} 34... Ra8 {[%clk
0:01:07.3]} 35. Nb1 {[%clk 0:00:20.1]} 35... Ra5 {[%clk 0:01:04]} 36. Nfd2
{[%clk 0:00:20.4]} 36... Rh8 {[%clk 0:00:55.7]} 37. Kf2 {[%clk 0:00:20.7]} 37...
Rb5 {[%clk 0:00:52.2]} 38. b4 {[%clk 0:00:15]} 38... cxb3 {[%clk 0:00:51.9]} 39.
Bxb3 {[%clk 0:00:15.3]} 39... Rc8 {[%clk 0:00:47.5]} 40. a4 {[%clk 0:00:15.1]}
40... Ra5 {[%clk 0:00:47.7]} 41. Ke2 {[%clk 0:00:15.6]} 41... b5 {[%clk
0:00:46.4]} 42. axb5 {[%clk 0:00:14.7]} 42... Rxb5 {[%clk 0:00:46.5]} 43. Rc1
{[%clk 0:00:11.2]} 43... Be8 {[%clk 0:00:36.1]} 44. Rhh1 {[%clk 0:00:10.9]}
44... Ra5 {[%clk 0:00:24.6]} 45. Bc2 {[%clk 0:00:10.2]} 45... Ra2 {[%clk
0:00:22.8]} 46. Kd1 {[%clk 0:00:10.5]} 46... Bb5 {[%clk 0:00:20.1]} 47. Rxh5
{[%clk 0:00:09]} 47... Kf7 {[%clk 0:00:18.8]} 48. Rh7+ {[%clk 0:00:09.1]} 48...
Bg7 {[%clk 0:00:19.1]} 49. Rh1 {[%clk 0:00:10]} 49... Kg6 {[%clk 0:00:18.9]} 50.
Bb3 {[%clk 0:00:10]} 50... Ra1 {[%clk 0:00:18.2]} 51. Kc2 {[%clk 0:00:09.4]}
51... Rca8 {[%clk 0:00:17.7]} 52. Kb2 {[%clk 0:00:08.9]} 52... R1a7 {[%clk
0:00:17.1]} 53. c4 {[%clk 0:00:08]} 53... dxc4 {[%clk 0:00:16.8]} 54. Nxc4
{[%clk 0:00:08.9]} 54... Bxc4 {[%clk 0:00:16.2]} 55. Bxc4 {[%clk 0:00:09.5]}
55... Nxc4+ {[%clk 0:00:16]} 56. Rxc4 {[%clk 0:00:10.4]} 56... Ra2+ {[%clk
0:00:16.3]} 57. Kb3 {[%clk 0:00:10.7]} 57... Rxg2 {[%clk 0:00:16.1]} 58. Rb4
{[%clk 0:00:08.6]} 58... Rxg3 {[%clk 0:00:16.1]} 59. Re1 {[%clk 0:00:07.7]}
59... Rh8 {[%clk 0:00:11.7]} 60. Nc3 {[%clk 0:00:08]} 60... Rhh3 {[%clk
0:00:11.6]} 61. Nd1 {[%clk 0:00:07.4]} 61... Rf3 {[%clk 0:00:11.7]} 62. Kc4
{[%clk 0:00:06]} 62... g3 {[%clk 0:00:11.6]} 63. Rb6 {[%clk 0:00:06]} 63... Kf6
{[%clk 0:00:10.4]} 64. Rg1 {[%clk 0:00:02]} 64... Rh2 {[%clk 0:00:10.1]} 65. Nc3
{[%clk 0:00:02.5]} 65... g2 {[%clk 0:00:09.4]} 66. Nd5+ {[%clk 0:00:01.1]} 66...
Kg6 {[%clk 0:00:08.1]} 67. Rxe6+ {[%clk 0:00:01.1]} 67... Kf7 {[%clk 0:00:08.8]}
68. Re7+ {[%clk 0:00:01.4]} 68... Kf8 {[%clk 0:00:09.5]} 69. Rxb7 {[%clk
0:00:01.4]} 69... Rf1 {[%clk 0:00:09.9]} 70. Rxg2 {[%clk 0:00:01.4]} 70... Rxg2
{[%clk 0:00:10.1]} 71. Nc7 {[%clk 0:00:02]} 71... Rc1+ {[%clk 0:00:09.8]} 72.
Kd5 {[%clk 0:00:02.3]} 72... Rg6 {[%clk 0:00:09.5]} 73. Ne6+ {[%clk 0:00:02.1]}
73... Kg8 {[%clk 0:00:10.2]} 74. Rb8+ {[%clk 0:00:01.5]} 74... Kh7 {[%clk
0:00:10.6]} 75. Ng5+ {[%clk 0:00:01.3]} 75... Kh6 {[%clk 0:00:11]} 0-1

[Event "Late-Titled-Tuesday-Blitz-March-19-2024"]
[Site "Chess.com"]
[Date "2024.03.19"]
[Round "8"]
[White "Evgeny81"]
[Black "Muracle"]
[Result "1-0"]
[WhiteElo "2776"]
[BlackElo "2596"]
[TimeControl "180+1"]
[EndTime "15:29:14 PDT"]
[Termination "Evgeny81 won by checkmate"]

1. e4 {[%clk 0:03:00.9]} 1... c6 {[%clk 0:02:52.4]} 2. c4 {[%clk 0:02:59.7]}
2... d5 {[%clk 0:02:53.3]} 3. exd5 {[%clk 0:02:59.9]} 3... cxd5 {[%clk
0:02:54.2]} 4. cxd5 {[%clk 0:03:00.3]} 4... Nf6 {[%clk 0:02:54.9]} 5. Nc3 {[%clk
0:03:00.6]} 5... Nxd5 {[%clk 0:02:55.5]} 6. Nf3 {[%clk 0:03:01.1]} 6... g6
{[%clk 0:02:55.2]} 7. Bc4 {[%clk 0:03:01.2]} 7... Nb6 {[%clk 0:02:55.8]} 8. Bb3
{[%clk 0:03:01.6]} 8... Bg7 {[%clk 0:02:56.5]} 9. d4 {[%clk 0:03:01.6]} 9... O-O
{[%clk 0:02:56.1]} 10. h3 {[%clk 0:03:01.9]} 10... Nc6 {[%clk 0:02:56.6]} 11. d5
{[%clk 0:03:02.1]} 11... Na5 {[%clk 0:02:57.1]} 12. O-O {[%clk 0:03:02.5]} 12...
Nxb3 {[%clk 0:02:54.1]} 13. axb3 {[%clk 0:03:02.3]} 13... Bxc3 {[%clk
0:02:54.5]} 14. bxc3 {[%clk 0:03:02.4]} 14... Qxd5 {[%clk 0:02:54.8]} 15. Qe2
{[%clk 0:02:55]} 15... Qxb3 {[%clk 0:02:34.1]} 16. Qxe7 {[%clk 0:02:51.5]} 16...
Qxc3 {[%clk 0:02:31.2]} 17. Bh6 {[%clk 0:02:42.1]} 17... Bf5 {[%clk 0:02:21.3]}
18. Bxf8 {[%clk 0:02:40.1]} 18... Rxf8 {[%clk 0:02:22.2]} 19. Qxb7 {[%clk
0:02:32.4]} 19... Nc8 {[%clk 0:02:14.7]} 20. Rfc1 {[%clk 0:02:26.8]} 20... Qf6
{[%clk 0:02:13.3]} 21. Ra6 {[%clk 0:02:21.2]} 21... Qd8 {[%clk 0:01:59]} 22. Qc7
{[%clk 0:02:10.8]} 22... Qd3 {[%clk 0:01:56]} 23. Ra2 {[%clk 0:02:05]} 23... Qd5
{[%clk 0:01:53.7]} 24. Rd2 {[%clk 0:02:03.9]} 24... Qe4 {[%clk 0:01:41.2]} 25.
Re1 {[%clk 0:01:56.3]} 25... Qb4 {[%clk 0:01:40.2]} 26. Rd8 {[%clk 0:01:55.5]}
26... a5 {[%clk 0:01:35.5]} 27. Ree8 {[%clk 0:01:52.7]} 27... Rxe8 {[%clk
0:01:31.9]} 28. Rxe8+ {[%clk 0:01:52.9]} 28... Kg7 {[%clk 0:01:32.3]} 29. Qe5+
{[%clk 0:01:48.8]} 29... f6 {[%clk 0:01:32.6]} 30. Qc7+ {[%clk 0:01:45.3]} 30...
Kh6 {[%clk 0:01:33.2]} 31. Rg8 {[%clk 0:01:34.9]} 31... Ne7 {[%clk 0:01:26.6]}
32. Qc1+ {[%clk 0:01:34.8]} 32... g5 {[%clk 0:01:25.3]} 33. Rxg5 {[%clk
0:01:33.4]} 33... Qb1 {[%clk 0:00:59.4]} 34. Qxb1 {[%clk 0:01:18.8]} 34... Bxb1
{[%clk 0:01:00.3]} 35. Rxa5 {[%clk 0:01:18.7]} 35... Nf5 {[%clk 0:00:58.7]} 36.
g4 {[%clk 0:01:13.9]} 36... Nd6 {[%clk 0:00:59]} 37. Ra6 {[%clk 0:01:07.7]}
37... Ne4 {[%clk 0:00:59.5]} 38. Kg2 {[%clk 0:01:07.4]} 38... Kg7 {[%clk
0:00:53.1]} 39. Nd4 {[%clk 0:01:05.4]} 39... Nc5 {[%clk 0:00:51.8]} 40. Ra5
{[%clk 0:01:02.6]} 40... Ne4 {[%clk 0:00:30.4]} 41. Nf5+ {[%clk 0:01:00.5]}
41... Kg6 {[%clk 0:00:30]} 42. Ra7 {[%clk 0:00:56.6]} 42... Kg5 {[%clk
0:00:26.7]} 43. Rxh7 {[%clk 0:00:56.1]} 43... Kf4 {[%clk 0:00:26.2]} 44. Rb7
{[%clk 0:00:52.7]} 44... Bd3 {[%clk 0:00:24.5]} 45. Rb4 {[%clk 0:00:53.3]} 45...
Be2 {[%clk 0:00:21.3]} 46. Rxe4+ {[%clk 0:00:45.8]} 46... Kxe4 {[%clk
0:00:20.9]} 47. Ng3+ {[%clk 0:00:46.3]} 47... Kd3 {[%clk 0:00:21.8]} 48. Nxe2
{[%clk 0:00:46.7]} 48... Kxe2 {[%clk 0:00:22.7]} 49. h4 {[%clk 0:00:47.2]} 49...
Kd3 {[%clk 0:00:23.6]} 50. Kf3 {[%clk 0:00:46.4]} 50... Kd4 {[%clk 0:00:22.9]}
51. Kf4 {[%clk 0:00:46.7]} 51... Kd5 {[%clk 0:00:23.8]} 52. h5 {[%clk
0:00:47.2]} 52... Kd6 {[%clk 0:00:24.7]} 53. Kf5 {[%clk 0:00:47.9]} 53... Kd7
{[%clk 0:00:25.6]} 54. Kxf6 {[%clk 0:00:48.4]} 54... Kd8 {[%clk 0:00:26.5]} 55.
Kf7 {[%clk 0:00:47.2]} 55... Kc8 {[%clk 0:00:27.4]} 56. Ke7 {[%clk 0:00:46.5]}
56... Kc7 {[%clk 0:00:28.3]} 57. f4 {[%clk 0:00:46.3]} 57... Kc6 {[%clk
0:00:29.2]} 58. f5 {[%clk 0:00:46.9]} 58... Kc5 {[%clk 0:00:30.1]} 59. Ke6
{[%clk 0:00:47.3]} 59... Kc4 {[%clk 0:00:31]} 60. Ke5 {[%clk 0:00:47.9]} 60...
Kc3 {[%clk 0:00:31.9]} 61. g5 {[%clk 0:00:48.6]} 61... Kc2 {[%clk 0:00:32.8]}
62. h6 {[%clk 0:00:49.4]} 62... Kc1 {[%clk 0:00:33.7]} 63. Ke4 {[%clk
0:00:50.2]} 63... Kb1 {[%clk 0:00:34.6]} 64. f6 {[%clk 0:00:51.1]} 64... Kb2
{[%clk 0:00:35.5]} 65. g6 {[%clk 0:00:52]} 65... Kb3 {[%clk 0:00:36.4]} 66. f7
{[%clk 0:00:52.9]} 66... Kb4 {[%clk 0:00:37.3]} 67. g7 {[%clk 0:00:53.7]} 67...
Kb5 {[%clk 0:00:38.2]} 68. h7 {[%clk 0:00:54.6]} 68... Kb6 {[%clk 0:00:39.1]}
69. Ke5 {[%clk 0:00:55.2]} 69... Kb7 {[%clk 0:00:40]} 70. Ke6 {[%clk 0:00:56.1]}
70... Kb8 {[%clk 0:00:40.9]} 71. Ke7 {[%clk 0:00:57]} 71... Ka8 {[%clk
0:00:41.8]} 72. Ke8 {[%clk 0:00:55.6]} 72... Ka7 {[%clk 0:00:42.7]} 73. f8=Q
{[%clk 0:00:54.6]} 73... Ka6 {[%clk 0:00:43.6]} 74. g8=Q {[%clk 0:00:54.6]}
74... Ka5 {[%clk 0:00:44.5]} 75. h8=Q {[%clk 0:00:54.9]} 75... Ka4 {[%clk
0:00:45.4]} 76. Ke7 {[%clk 0:00:50.4]} 76... Ka3 {[%clk 0:00:46.3]} 77. Qb8
{[%clk 0:00:49]} 77... Ka4 {[%clk 0:00:43.9]} 78. Qb7 {[%clk 0:00:48.7]} 78...
Ka5 {[%clk 0:00:44.8]} 79. Kf7 {[%clk 0:00:44.8]} 79... Ka4 {[%clk 0:00:45.7]}
80. Kg7 {[%clk 0:00:45.7]} 80... Ka5 {[%clk 0:00:46.6]} 81. Kh7 {[%clk
0:00:46.6]} 81... Ka4 {[%clk 0:00:47.5]} 82. Kh6 {[%clk 0:00:47.5]} 82... Ka5
{[%clk 0:00:48.4]} 83. Kh5 {[%clk 0:00:48.4]} 83... Ka4 {[%clk 0:00:49.3]} 84.
Kh4 {[%clk 0:00:49.3]} 84... Ka5 {[%clk 0:00:50.2]} 85. Kh3 {[%clk 0:00:50.2]}
85... Ka4 {[%clk 0:00:51.1]} 86. Kh2 {[%clk 0:00:51.1]} 86... Ka5 {[%clk
0:00:52]} 87. Kh1 {[%clk 0:00:52]} 87... Ka4 {[%clk 0:00:50.2]} 88. Kg1 {[%clk
0:00:52.9]} 88... Ka5 {[%clk 0:00:51.1]} 89. Kg2 {[%clk 0:00:53.8]} 89... Ka4
{[%clk 0:00:52]} 90. Kg3 {[%clk 0:00:54.7]} 90... Ka5 {[%clk 0:00:52.9]} 91. Kg4
{[%clk 0:00:55.6]} 91... Ka4 {[%clk 0:00:53.8]} 92. Kg5 {[%clk 0:00:56.5]} 92...
Ka5 {[%clk 0:00:54.7]} 93. Kg6 {[%clk 0:00:57.4]} 93... Ka4 {[%clk 0:00:55.6]}
94. Kf6 {[%clk 0:00:58.3]} 94... Ka5 {[%clk 0:00:56.5]} 95. Kf5 {[%clk
0:00:59.2]} 95... Ka4 {[%clk 0:00:57.4]} 96. Kf4 {[%clk 0:01:00.1]} 96... Ka5
{[%clk 0:00:58.3]} 97. Qf8 {[%clk 0:00:59.8]} 97... Ka4 {[%clk 0:00:59.2]} 98.
Ke4 {[%clk 0:00:51.8]} 98... Ka5 {[%clk 0:01:00.1]} 99. Kd4 {[%clk 0:00:52]}
99... Ka4 {[%clk 0:01:01]} 100. Qhg8 {[%clk 0:00:49.6]} 100... Ka5 {[%clk
0:01:01.9]} 101. Qgh7 {[%clk 0:00:31.3]} 101... Ka4 {[%clk 0:01:02.8]} 102. Qhh1
{[%clk 0:00:31.8]} 102... Ka5 {[%clk 0:01:03.7]} 103. Kd5 {[%clk 0:00:29.9]}
103... Ka4 {[%clk 0:01:04.6]} 104. Qff3 {[%clk 0:00:29.7]} 104... Ka5 {[%clk
0:01:05.5]} 105. Qhf1 {[%clk 0:00:26.8]} 105... Ka4 {[%clk 0:01:06.4]} 106. Q1d3
{[%clk 0:00:26.3]} 106... Ka5 {[%clk 0:01:07.3]} 107. Qdb1 {[%clk 0:00:23.9]}
107... Ka4 {[%clk 0:01:08.2]} 108. Kc4 {[%clk 0:00:15.7]} 108... Ka5 {[%clk
0:01:09.1]} 109. Qfe4 {[%clk 0:00:14.9]} 109... Ka4 {[%clk 0:01:10]} 110. Qa8#
{[%clk 0:00:06.9]} 1-0